fUST/lending_fUST_20260201
["ID","MTS","AMOUNT","RATE_DAILY","PERIOD"]
[404184331,1769910642175,-151.0,0.000167,2]
[404184332,1769910642185,-355.0,0.00016894,2]
[404184333,1769910642196,-874.61899578,0.00016976,2]
[404184334,1769910642205,-151.0,0.000171,2]
[404184335,1769910642215,-151.0,0.000171,2]
[404184336,1769910642224,-1007.22946698,0.00017108,2]
[404184337,1769910642233,-500.0,0.00017187,2]
[404184338,1769910642243,-500.0,0.00017187,2]
[404184339,1769910642254,-500.0,0.00017187,2]
[404184340,1769910642266,-501.24641503,0.00017187,2]
[404184341,1769910642275,-2653.45,0.00017221,2]
[404184342,1769910642285,-2653.45,0.00017221,2]
[404184343,1769910642294,-20831.8357198,0.00017222,2]
[404184344,1769910642305,-8583.703117,0.00017222,2]
[404184345,1769910642315,-3142.6334582,0.00017222,2]
[404184346,1769910642324,-823.0,0.00017362,2]
[404184347,1769910642333,-500.0,0.00017469,2]
[404184348,1769910642342,-590.55257613,0.00017469,2]
[404184349,1769910642351,-500.0,0.00017469,2]
[404184350,1769910642360,-500.0,0.00017469,2]
[404184351,1769910642369,-500.0,0.00017469,2]
[404184352,1769910642378,-500.0,0.00017469,2]
[404184353,1769910642390,-207.27516279,0.00017471,2]
[404184354,1769910642399,-500.0,0.00017471,2]
[404184355,1769910642410,-2142.10864354,0.000176,2]
[404184356,1769910642419,-151.0,0.000176,2]
[404184357,1769910642428,-151.0,0.000176,2]
[404184358,1769910642438,-524.65039498,0.0001771,4]
[404184359,1769910642448,-152.0206055,0.000178,2]
[404184360,1769910642459,-500.0,0.00017819,2]
[404184361,1769910642468,-1763.452694,0.0001782,7]
[404184362,1769910642476,-165.81294377,0.0001782,2]
[404184363,1769910642486,-2609.5579409,0.0001782,2]
[404184364,1769910642495,-3709.97274134,0.000179,2]
[404184365,1769910642504,-1385.26051107,0.000179,2]
[404184366,1769910642513,-2653.45,0.00017989,2]
[404184367,1769910642523,-2162.089083,0.00017989,7]
[404184368,1769910642532,-160.08927069,0.00017999,2]
[404184369,1769910642541,-160.0,0.00017999,2]
[404184370,1769910642550,-200.0,0.00017999,2]
[404184371,1769910642559,-2653.45,0.00017999,2]
[404184372,1769910642568,-2653.45,0.00017999,2]
[404184373,1769910642577,-2653.45,0.00017999,2]
[404184374,1769910642586,-2653.45,0.00017999,2]
[404184375,1769910642596,-2653.45,0.00017999,2]
[404184376,1769910642605,-2653.45,0.00017999,2]
[404184377,1769910642614,-2653.45,0.00017999,2]
[404184378,1769910642623,-2653.45,0.00017999,2]
[404184379,1769910642632,-2653.45,0.00017999,2]
[404184380,1769910642641,-2653.49128286,0.00017999,2]
[404184381,1769910642650,-500.0,0.00017999,2]
[404184382,1769910642659,-292.61020392,0.00017999,2]
[404184383,1769910642668,-200.43079728,0.00017999,2]
[404184384,1769910642677,-200.0,0.00017999,2]
[404184385,1769910642687,-200.0,0.00017999,2]
[404184386,1769910642696,-200.0,0.00017999,2]
[404184387,1769910642705,-849629.54134647,0.00018,2]
[404184388,1769910642765,-2423.20344557,0.00018,2]
[404184389,1769910642785,-156858.15147883,0.00018,2]
[404184393,1769910644491,-438.87021569,0.00018,2]
[404184405,1769910646601,-280.70606371,0.00018,2]
[404184406,1769910646707,-3690.68506604,0.00018,2]
[404184448,1769910759647,151.0,0.00037218,31]
[404184449,1769910759768,254.874159,0.00037218,31]
[404184450,1769910760067,151.0,0.00037218,31]
[404184451,1769910760100,254.874159,0.00037218,31]
[404184452,1769910760374,151.0,0.00037218,31]
[404184453,1769910760410,254.874159,0.00037218,31]
[404184454,1769910760672,254.874159,0.00037218,31]
[404184455,1769910760706,151.0,0.00037218,31]
[404184456,1769910760955,254.874159,0.00037218,31]
[404184457,1769910760990,151.0,0.00037218,31]
[404184458,1769910761255,254.874159,0.00037218,31]
[404184459,1769910761300,151.0,0.00037218,31]
[404184460,1769910761545,254.874159,0.00037218,31]
[404184461,1769910761582,151.0,0.00037218,31]
[404184462,1769910761833,254.874159,0.00037218,31]
[404184463,1769910761868,212.785495,0.00037218,31]
[404184464,1769910762124,254.874159,0.00037218,31]
[404184465,1769910762413,254.874159,0.00037218,31]
[404184466,1769910762696,254.874159,0.00037156,31]
[404184467,1769910763004,254.874159,0.00037156,31]
[404184468,1769910763297,254.874159,0.00037156,31]
[404184469,1769910763604,254.874159,0.00037156,31]
[404184470,1769910763896,254.874159,0.00037156,31]
[404184471,1769910764182,254.874159,0.00037156,31]
[404184472,1769910764509,254.874159,0.00037156,31]
[404184473,1769910764783,254.874159,0.00037156,31]
[404184474,1769910765066,254.874159,0.00037156,31]
[404184475,1769910765363,254.874161,0.00037156,31]
[404184476,1769910767093,185.0,0.00037156,20]
[404184479,1769910795995,245.79,0.00014,30]
[404184480,1769910816999,368.68,0.00030137,120]
[404184481,1769910835098,368.67,0.00030137,120]
[404184529,1769911495456,8722.278523,0.00037177,28]
[404184530,1769911495751,8722.278523,0.00037177,28]
[404184531,1769911496037,8722.278523,0.00037177,28]
[404184532,1769911496345,8722.278523,0.00037177,28]
[404184533,1769911496642,8722.278523,0.00037177,28]
[404184534,1769911496919,8722.278523,0.00037177,28]
[404184535,1769911497217,8722.278523,0.00037177,28]
[404184536,1769911497507,8722.278523,0.00037177,28]
[404184537,1769911497791,8722.278523,0.00037177,28]
[404184538,1769911498072,8722.278523,0.00037177,28]
[404184539,1769911498370,8722.278523,0.00037177,28]
[404184540,1769911498670,8722.278523,0.00037177,28]
[404184541,1769911498957,8722.278523,0.00037177,28]
[404184542,1769911499267,8722.278523,0.00037177,28]
[404184543,1769911499588,8722.278523,0.00037177,28]
[404184544,1769911499892,8722.278523,0.00037177,28]
[404184545,1769911500195,8722.278523,0.00037177,28]
[404184546,1769911500608,8722.278523,0.00037177,28]
[404184547,1769911500977,8722.278523,0.00037177,28]
[404184548,1769911501607,8722.278527,0.00037177,28]
[404184549,1769911637667,1000.0,0.0003,120]
[404184758,1769911694645,156.26191035,0.00037177,120]
[404184762,1769911705842,151.0,0.00037177,31]
[404184785,1769911737037,500.0,0.0003,120]
[404184790,1769911760763,160.261438,0.00037177,31]
[404184808,1769911805601,658.23304988,0.00037177,120]
[404184824,1769911815064,229.50947,0.00037177,31]
[404184860,1769911832472,-177.8356883,0.00013056,2]
[404184862,1769911832481,-528.46617871,0.00013273,2]
[404184864,1769911832490,-144.30782633,0.00013273,2]
[404184869,1769911832528,-42.53085258,0.00013273,2]
[404184871,1769911832537,-209.84611219,0.00015056,2]
[404184872,1769911832546,-189.2908634,0.00015132,2]
[404184874,1769911832555,-300.0,0.00015297,2]
[404184876,1769911832564,-300.0,0.00015331,2]
[404184878,1769911832573,-3033.28061939,0.00015332,2]
[404184881,1769911832584,-512.53214754,0.00015332,2]
[404185042,1769911838629,-2565.59023495,0.00015332,2]
[404185049,1769911838682,-516.62,0.00015332,2]
[404185051,1769911838693,-491.32528003,0.00015332,2]
[404185053,1769911838704,-331.17124106,0.00015332,2]
[404185128,1769911839420,-778.62856819,0.00015332,2]
[404185133,1769911839459,151.0,0.00037177,31]
[404185138,1769911839497,151.0,0.00037177,31]
[404185143,1769911839534,151.0,0.00037177,31]
[404185152,1769911839772,151.0,0.00037177,31]
[404185153,1769911840063,151.0,0.00037177,31]
[404185155,1769911840344,151.0,0.00037177,31]
[404185157,1769911840626,151.0,0.00037177,31]
[404185158,1769911840847,-1770.85190884,0.00015332,2]
[404185159,1769911840857,-420.0,0.00016773,2]
[404185160,1769911840866,-241.85653608,0.00017056,2]
[404185161,1769911840875,-277.02826335,0.0001706,2]
[404185162,1769911840886,-1277.84995138,0.0001706,2]
[404185163,1769911840895,-1096.46353166,0.00017534,4]
[404185164,1769911840905,-200.5565406,0.00017725,2]
[404185165,1769911840913,-201.0464105,0.00017725,2]
[404185166,1769911840922,-250.0,0.00017725,2]
[404185167,1769911840931,-200.90358568,0.00017725,2]
[404185168,1769911840940,-200.30021573,0.00017725,2]
[404185169,1769911840950,-150.0,0.00017725,2]
[404185170,1769911840960,-150.0,0.00017725,2]
[404185171,1769911840969,-150.0,0.00017862,2]
[404185172,1769911840978,-150.0,0.00017862,2]
[404185173,1769911840987,-6182.14342578,0.00017872,2]
[404185174,1769911840997,-425.254,0.000179,2]
[404185175,1769911841006,-179.07378777,0.000179,2]
[404185176,1769911841015,-2967.97819308,0.000179,2]
[404185177,1769911841024,-500.0,0.00017971,2]
[404185178,1769911841033,-263.90050593,0.00017971,2]
[404185179,1769911841042,-500.0,0.00017971,2]
[404185180,1769911841051,-331.92035664,0.00017971,2]
[404185181,1769911841060,-153.90872906,0.00017971,2]
[404185182,1769911841069,-454.27374898,0.00017971,2]
[404185183,1769911841078,-1823.25,0.00017971,2]
[404185184,1769911841086,-3155.0541146,0.00017972,2]
[404185185,1769911841095,-2356.9750936,0.00017972,2]
[404185186,1769911841104,-15623.8767898,0.00017972,2]
[404185187,1769911841113,-6437.7773378,0.00017972,2]
[404185188,1769911841121,-782.9214542,0.00017998,2]
[404185189,1769911841133,-1040.3285458,0.00017998,2]
[404185190,1769911841143,-1823.25,0.00017998,2]
[404185191,1769911841152,-1823.25,0.00017998,2]
[404185192,1769911841162,-150.0,0.00017999,2]
[404185193,1769911841172,-206.83417926,0.00017999,2]
[404185194,1769911841182,-155.324,0.00017999,2]
[404185195,1769911841191,-200.0,0.00017999,2]
[404185196,1769911841200,-200.0,0.00017999,2]
[404185197,1769911841209,-165.13470443,0.00017999,2]
[404185198,1769911841218,-1823.25,0.00017999,2]
[404185199,1769911841227,-1823.25,0.00017999,2]
[404185200,1769911841236,-1823.25,0.00017999,2]
[404185201,1769911841246,-266.12857051,0.00017999,2]
[404185202,1769911841258,-609.89200902,0.00017999,2]
[404185203,1769911841294,151.0,0.00037177,31]
[404185204,1769911841342,151.0,0.00037177,31]
[404185205,1769911841533,151.0,0.00037177,31]
[404185206,1769911841832,151.0,0.00037177,31]
[404185207,1769911842122,246.88278808,0.00037177,31]
[404185398,1769911845114,-947.22942047,0.00017999,2]
[404185400,1769911845123,-1823.25,0.00017999,2]
[404185402,1769911845132,-1823.25,0.00017999,2]
[404185404,1769911845141,-208.65783557,0.00017999,2]
[404185406,1769911845153,-1614.59216443,0.00017999,2]
[404185408,1769911845162,-1823.25,0.00017999,2]
[404185410,1769911845171,-707.4379065,0.00017999,2]
[404185413,1769911845182,-1115.8120935,0.00017999,2]
[404185415,1769911845191,-1823.25,0.00017999,2]
[404185417,1769911845200,-1823.25,0.00017999,2]
[404185419,1769911845210,-1823.25,0.00017999,2]
[404185421,1769911845219,-1632.4379065,0.00017999,2]
[404185544,1769911846753,-190.8120935,0.00017999,2]
[404185546,1769911846765,-1823.25,0.00017999,2]
[404185548,1769911846776,-1823.25,0.00017999,2]
[404185550,1769911846788,-1823.25,0.00017999,2]
[404185552,1769911846799,-1823.25,0.00017999,2]
[404185553,1769911846808,-1823.25,0.00017999,2]
[404185555,1769911846818,-1823.25,0.00017999,2]
[404185557,1769911846828,-1823.4836931,0.00017999,2]
[404185558,1769911846838,-228.06268375,0.00017999,2]
[404185559,1769911846848,-252.16041997,0.00017999,2]
[404185560,1769911846859,-238.61648627,0.00017999,2]
[404185561,1769911846872,-167.03154038,0.00017999,2]
[404185562,1769911846881,-2570.33308302,0.00018,2]
[404185563,1769911846894,-545.5,0.00018,2]
[404185564,1769911846913,-6260.91114423,0.00018,2]
[404185565,1769911846928,-49845.12392671,0.00018,2]
[404185566,1769911846941,-1570.34,0.00018,2]
[404185571,1769912070262,236.85135999,0.00037174,120]
[404185572,1769912070619,236.85135999,0.00037174,120]
[404185573,1769912071064,236.85135999,0.00037174,120]
[404185574,1769912091448,80000.0000007,0.00037174,60]
[404185600,1769912412302,1318.64419236,0.00037171,120]
[404185926,1769912672632,-374.446505,0.0001665,2]
[404185927,1769912672655,-173.24465769,0.00016757,2]
[404185928,1769912672677,-300.0,0.00016864,2]
[404185929,1769912672700,-300.0,0.00016864,2]
[404185930,1769912672728,-10542.9330229,0.00016865,2]
[404185931,1769912672751,-668.0,0.00016965,2]
[404185932,1769912672772,-1834.3972932,0.00016965,2]
[404185933,1769912672795,-1000.0,0.00017025,2]
[404185934,1769912672816,-2374.38255448,0.000179,2]
[404185935,1769912672838,-300.0,0.00017992,2]
[404185936,1769912672860,-1200.0,0.00017992,2]
[404185937,1769912672880,-19217.94175372,0.00017993,2]
[404185938,1769912672901,-1767.7313203,0.00017993,2]
[404185939,1769912672923,-2366.2905859,0.00017993,2]
[404185940,1769912672944,-11717.9075924,0.00017993,2]
[404185941,1769912672968,-200.0,0.00017999,2]
[404185942,1769912672992,-176.51229398,0.00017999,2]
[404185943,1769912673014,-990.46,0.00018,2]
[404185944,1769912673037,-144495.75242043,0.00018,2]
[404185958,1769912806844,480.27,0.00037171,20]
[404185961,1769912888386,190.33508935,0.00037171,120]
[404185962,1769912897339,160.66962459,0.00037171,120]
[404185964,1769912906577,1321.18698612,0.00037171,120]
[404185965,1769912907317,254.4069011,0.00037171,120]
[404185966,1769912909558,213.34304744,0.00037171,60]
[404185968,1769912915948,160.56034038,0.0003,120]
[404185969,1769912916835,208.610304,0.00037171,30]
[404186004,1769913031710,-2627.5548539,0.00016816,2]
[404186005,1769913031806,-2096.50297832,0.00017163,2]
[404186006,1769913031815,-173.01884586,0.00017316,2]
[404186007,1769913031824,-300.0,0.00017469,2]
[404186008,1769913031833,-225.0,0.00017469,2]
[404186009,1769913031841,-10296.92332192,0.0001747,2]
[404186010,1769913032010,-4624.983028,0.0001747,2]
[404186046,1769913044281,-442.81646,0.0001747,2]
[404186047,1769913044292,-14653.34058137,0.0001747,2]
[404186048,1769913044302,-5409.37549754,0.000178,2]
[404186049,1769913044310,-2327.91593645,0.000179,2]
[404186050,1769913044321,-3582.57383663,0.00017993,2]
[404186063,1769913045908,-280.2939363,0.00017993,2]
[404186064,1769913046015,-965.46523037,0.00017993,2]
[404186065,1769913046025,-195.9624993,0.00017999,2]
[404186066,1769913046037,-500.0,0.00017999,2]
[404186067,1769913046046,-500.0,0.00017999,2]
[404186068,1769913046057,-500.0,0.00017999,2]
[404186069,1769913046070,-500.0,0.00017999,2]
[404186070,1769913046080,-500.0,0.00017999,2]
[404186071,1769913046090,-375.10455337,0.00017999,2]
[404186072,1769913046101,-500.0,0.00017999,2]
[404186073,1769913046112,-500.0,0.00017999,2]
[404186074,1769913046122,-500.0,0.00017999,2]
[404186075,1769913046131,-154.58860057,0.00017999,2]
[404186076,1769913046143,-500.0,0.00017999,2]
[404186077,1769913046152,-500.0,0.00017999,2]
[404186078,1769913046163,-500.0,0.00017999,2]
[404186079,1769913046172,-536.70497108,0.00017999,2]
[404186080,1769913046182,-500.0,0.00017999,2]
[404186081,1769913046191,-500.0,0.00017999,2]
[404186082,1769913046200,-500.0,0.00017999,2]
[404186083,1769913046209,-500.0,0.00017999,2]
[404186084,1769913046218,-500.0,0.00017999,2]
[404186085,1769913046229,-500.0,0.00017999,2]
[404186086,1769913046239,-500.0,0.00017999,2]
[404186087,1769913046252,-500.0,0.00017999,2]
[404186088,1769913046264,-500.0,0.00017999,2]
[404186089,1769913046276,-500.0,0.00017999,2]
[404186090,1769913046287,-500.0,0.00017999,2]
[404186091,1769913046299,-10544.59997817,0.00018,2]
[404186117,1769913197048,1000.0,0.00030137,120]
[404186149,1769914143184,500.0,0.00013273,2]
[404186150,1769914143219,161.67808323,0.00013273,2]
[404186151,1769914143244,500.0,0.00013699,2]
[404186152,1769914145567,1000.0,0.00013821,2]
[404186153,1769914145701,500.0,0.00013273,2]
[404186154,1769914145755,500.0,0.00013273,2]
[404186155,1769914145794,500.25507432,0.00013821,2]
[404186156,1769914146152,500.0,0.00013273,2]
[404186157,1769914146197,1000.0,0.00013821,2]
[404186158,1769914146245,500.0,0.00013273,2]
[404186159,1769914147046,1000.0,0.00013821,2]
[404186160,1769914147151,500.0,0.00013273,2]
[404186161,1769914149205,326.82324857,0.00013273,2]
[404186162,1769914149585,262.14863561,0.00013273,2]
[404186163,1769914150995,500.0,0.00013699,2]
[404186164,1769914152205,281.18571887,0.00013273,2]
[404186165,1769914152602,639.11184275,0.00013699,2]
[404186166,1769914153132,342.18932159,0.00013273,2]
[404186167,1769914155509,500.0,0.00013273,2]
[404186168,1769914155556,1000.0,0.00013821,2]
[404186169,1769914156792,336.4468968,0.00013699,2]
[404186170,1769914156855,500.29942833,0.00013273,2]
[404186171,1769914157219,379.37881138,0.00013699,2]
[404186172,1769914158957,500.0,0.00013273,2]
[404186173,1769914159025,1000.0,0.00013821,2]
[404186174,1769914159104,500.0,0.00013273,2]
[404186175,1769914159168,1000.0,0.00013821,2]
[404186176,1769914159287,500.0,0.00013699,2]
[404186177,1769914159548,500.0,0.00013699,2]
[404186178,1769914159738,500.0,0.00013273,2]
[404186179,1769914159782,1000.0,0.00013821,2]
[404186180,1769914159829,500.0,0.00013699,2]
[404186181,1769914159974,205.23675119,0.00013273,2]
[404186182,1769914160319,500.0,0.00013273,2]
[404186183,1769914160355,1000.0,0.00013821,2]
[404186184,1769914160696,500.0,0.00013273,2]
[404186185,1769914160729,500.0,0.00013273,2]
[404186186,1769914160763,923.26460722,0.00013821,2]
[404186187,1769914160896,267.65962509,0.00013821,2]
[404186188,1769914160927,347.03376695,0.00013273,2]
[404186189,1769914161086,300.0,0.00013673,2]
[404186190,1769914161340,1000.0,0.00013821,2]
[404186191,1769914161464,500.0,0.00013273,2]
[404186193,1769914204280,502.49338611,0.00013273,2]
[404186194,1769914204312,1000.0,0.00013821,2]
[404186195,1769914204343,500.0,0.00013273,2]
[404186196,1769914204378,500.0,0.00013273,2]
[404186197,1769914204438,1000.0,0.00013821,2]
[404186198,1769914204545,500.0,0.00013273,2]
[404186199,1769914204594,1000.0,0.00013821,2]
[404186200,1769914204703,500.0,0.00013273,2]
[404186201,1769914204734,500.0,0.00013821,2]
[404186202,1769914207307,500.0,0.00013273,2]
[404186203,1769914207353,900.22693379,0.00013821,2]
[404186204,1769914208837,500.43142396,0.00013273,2]
[404186205,1769914211056,500.50589715,0.00013273,2]
[404186206,1769914211174,164.28929144,0.00013699,2]
[404186207,1769914214846,500.0,0.00013699,2]
[404186208,1769914215081,234.20869305,0.00013699,2]
[404186209,1769914215121,500.0,0.00013273,2]
[404186210,1769914215154,782.4268615,0.00013821,2]
[404186211,1769914215199,500.0,0.00013273,2]
[404186212,1769914215249,500.0,0.00013821,2]
[404186213,1769914215410,500.0,0.00013699,2]
[404186214,1769914215668,500.0,0.00013699,2]
[404186215,1769914215955,500.0,0.00013699,2]
[404186216,1769914216066,403.07241174,0.00013273,2]
[404186217,1769914216950,10000.0,0.00013582,2]
[404186218,1769914217486,500.0,0.00013699,2]
[404186219,1769914217889,500.0,0.00013699,2]
[404186220,1769914218033,508.49522103,0.00013699,2]
[404186221,1769914229969,819.178538,0.00014,2]
[404186255,1769914231666,173.0,0.00027666,120]
[404186283,1769914231797,-300.0,0.00014221,2]
[404186286,1769914231807,-623.0,0.00014221,2]
[404186288,1769914231817,-300.0,0.00014246,2]
[404186290,1769914231826,-300.0,0.00014246,2]
[404186292,1769914231836,-300.0,0.00014246,2]
[404186294,1769914231846,-300.0,0.00014246,2]
[404186296,1769914231855,-874.86350935,0.00014246,2]
[404186298,1769914231867,-325.13649065,0.00014246,2]
[404186300,1769914231877,-1000.0,0.00014247,2]
[404186302,1769914231891,-1000.0,0.00014247,2]
[404186304,1769914231901,-1000.0,0.00014247,2]
[404186306,1769914231910,-886.16038037,0.00014247,2]
[404186309,1769914231920,-237.37671403,0.00014247,2]
[404186310,1769914231929,-1000.0,0.00014247,2]
[404186312,1769914231938,-498.54806363,0.00014247,2]
[404186314,1769914231949,-1000.0,0.00014247,2]
[404186316,1769914231958,-1000.0,0.00014247,2]
[404186318,1769914231968,-1500.0,0.00014368,2]
[404186320,1769914231978,-1500.0,0.00014368,2]
[404186330,1769914232068,-1500.0,0.00014368,2]
[404186332,1769914232078,-1500.0,0.00014368,2]
[404186334,1769914232089,-1500.0,0.00014368,2]
[404186336,1769914232099,-1500.0,0.00014368,2]
[404186338,1769914232109,-440.86953465,0.00014368,2]
[404186340,1769914232119,-1500.0,0.00014368,2]
[404186342,1769914232128,-1500.0,0.00014368,2]
[404186344,1769914232137,-897.62397769,0.00014368,2]
[404186347,1769914232148,-500.0,0.00014368,2]
[404186349,1769914232158,-1065.0903288,0.00014795,2]
[404186351,1769914232167,-1009.35129804,0.00014795,2]
[404186353,1769914232178,-928.91678136,0.00014795,2]
[404186355,1769914232187,-787.21402463,0.00014795,2]
[404186358,1769914232204,-1500.0,0.00014795,2]
[404186360,1769914232216,-1500.0,0.00014795,2]
[404186362,1769914232228,-2000.0,0.00014916,2]
[404186364,1769914232237,-2000.0,0.00014916,2]
[404186366,1769914232247,-2000.0,0.00014916,2]
[404186368,1769914232258,-2000.0,0.00014916,2]
[404186370,1769914232268,-2000.0,0.00014916,2]
[404186372,1769914232278,-2000.0,0.00014916,2]
[404186374,1769914232288,-668.23504379,0.00014916,2]
[404186376,1769914232297,-5000.0,0.00015021,2]
[404186378,1769914232307,-2777.74304629,0.00015173,2]
[404186379,1769914232316,-10000.0,0.00015342,2]
[404186380,1769914232326,-2000.0,0.00015342,2]
[404186381,1769914232336,-4733.2035604,0.00015364,2]
[404186382,1769914232345,-10000.0,0.00015442,2]
[404186383,1769914232357,-1029.95906274,0.00015464,2]
[404186384,1769914232367,-1485.52378139,0.00015464,2]
[404186385,1769914232381,-780.32886061,0.00015464,2]
[404186386,1769914232391,-668.02793262,0.00015464,2]
[404186387,1769914232401,-1449.71077636,0.00015464,2]
[404186434,1769914233007,173.0,0.00029049,120]
[404186926,1769914237968,-1016.74727643,0.00015464,2]
[404186928,1769914237978,-500.0,0.00015464,2]
[404186930,1769914237987,-2500.0,0.00015464,2]
[404186933,1769914237999,-5776.5,0.00015542,2]
[404186935,1769914238010,-459.45061303,0.00015559,2]
[404186937,1769914238022,-2111.61938697,0.00015559,2]
[404186938,1769914238030,-244.0,0.00015603,2]
[404186940,1769914238040,-249.0,0.00015603,2]
[404186942,1769914238049,-420.0,0.00015603,2]
[404186944,1769914238060,-65.78359875,0.0001567,2]
[404186947,1769914238071,-1614.21640125,0.0001567,2]
[404186948,1769914238081,-60.50990468,0.00015716,2]
[404186951,1769914238097,-5000.0,0.0001531,2]
[404186953,1769914238106,-112.50894118,0.00015716,2]
[404186955,1769914238116,-300.0,0.00015769,2]
[404186957,1769914238126,-2040.77941003,0.0001589,2]
[404186959,1769914238136,-961.78168812,0.00016012,2]
[404186961,1769914238151,-190.43499692,0.00016287,2]
[404186963,1769914238164,-189.2908634,0.0001668,2]
[404186965,1769914238173,-587.0,0.0001709,2]
[404186967,1769914238184,-2351.0,0.00017237,2]
[404186969,1769914238193,-204.16223811,0.00017716,2]
[404186971,1769914238202,-225.0,0.00017898,2]
[404186973,1769914238211,-1862.33274916,0.000179,2]
[404186975,1769914238220,-12073.31487293,0.00017909,2]
[404186977,1769914238232,-446.33666335,0.00017909,2]
[404186979,1769914238241,-857.3768828,0.0001791,2]
[404186981,1769914238250,-538.455,0.0001791,2]
[404186983,1769914238259,-326.95925017,0.0001791,2]
[404186985,1769914238271,-1447.75868923,0.0001791,2]
[404186987,1769914238279,-63.82061077,0.0001791,2]
[404186989,1769914238290,-446.94503474,0.0001791,2]
[404186991,1769914238301,-5336.71742706,0.0001791,2]
[404186993,1769914238312,-6562.19737423,0.0001791,2]
[404186995,1769914238329,-500.0,0.0001791,2]
[404186997,1769914238349,-186.89,0.0001799,3]
[404186999,1769914238366,-560.71,0.0001799,3]
[404187001,1769914238379,-500.0,0.00017998,2]
[404187004,1769914238394,-500.0,0.00017998,2]
[404187006,1769914238403,-237.84151239,0.00017999,2]
[404187008,1769914238412,-200.0,0.00017999,2]
[404187010,1769914238424,-214.05360635,0.00017999,2]
[404187012,1769914238436,-428.1147223,0.00017999,2]
[404187014,1769914238445,-500.0,0.00017999,2]
[404187016,1769914238455,-500.0,0.00017999,2]
[404187018,1769914238464,-8393.71301857,0.00018,2]
[404187031,1769914238583,-264910.9695223,0.00018,2]
[404187628,1769914244807,-332.93810199,0.00017909,2]
[404187630,1769914244817,-1066.85943593,0.0001791,2]
[404187636,1769914244861,-329.42256727,0.0001791,2]
[404187639,1769914244870,-3370.28280855,0.00018,2]
[404187760,1769914246127,-3290.65789226,0.0001773,2]
[404187762,1769914246136,-43580.11434441,0.00018,2]
[404187764,1769914246147,-1715.2014698,0.00018,2]
[404188789,1769914265624,500.0,0.00013273,2]
[404188790,1769914265671,500.0,0.00013821,2]
[404188791,1769914268932,500.0,0.00013699,2]
[404188792,1769914323828,479.64135791,0.00013273,2]
[404188793,1769914325334,500.0,0.00013273,2]
[404188794,1769914325393,469.22404946,0.00013821,2]
[404188809,1769914383122,500.42326292,0.00013273,2]
[404188810,1769914383153,500.0,0.00013273,2]
[404188811,1769914383195,238.38109354,0.00013821,2]
[404188812,1769914383422,500.0,0.00013699,2]
[404188813,1769914383647,500.0,0.00013273,2]
[404188814,1769914383699,501.18723129,0.00013821,2]
[404188817,1769914386847,500.0,0.00013699,2]
[404188822,1769914447230,500.0,0.00013273,2]
[404188823,1769914447273,500.0,0.00013821,2]
[404188824,1769914453921,5000.0,0.00014,2]
[404188825,1769914475933,4106.51795123,0.00014,2]
[404188827,1769914503928,501.00416719,0.00013273,2]
[404188828,1769914504252,500.0,0.00013273,2]
[404188829,1769914504294,221.02565133,0.00013699,2]
[404188830,1769914504333,266.48240836,0.00013821,2]
[404188831,1769914506612,192.0,0.00028148,120]
[404188832,1769914507917,192.0,0.00029556,120]
[404188833,1769914531264,171.0,0.00026542,120]